[Event "GER-ch Youth-ODJM 2022 A"]
[Site "Willingen"]
[Date "2022.06.11"]
[Round "9.12"]
[White "Kruse, Victor"]
[Black "Garbuz, Vitaly"]
[Result "0-1"]
[ECO "A06"]
[WhiteElo "1733"]
[BlackElo "2134"]
[Annotator "TA"]
[PlyCount "55"]
[EventDate "2022.06.05"]
[EventType "swiss"]
[EventRounds "9"]
[EventCountry "GER"]
[SourceTitle "playchess.com"]
[Source "ChessBase"]
[SourceQuality "1"]
[TimeControl "40/4500+30:900+30"]

{[%evp 9,55,10,13,-12,0,0,0,0,0,0,11,8,6,8,12,-13,-6,-33,-29,-32,-36,-86,-85,-98,-92,-79,-67,-68,-63,-52,-39,-131,0,0,37,-166,-163,-181,-145,-141,0,0,0,-852,-847,-832,-822,-791]} 1. Nf3 {[%emt 0:00:00]} d5 {[%emt 0:10:48]} 2. b3 {[%emt 0:00:00]} Nf6 {[%emt 0:00:11]} 3. Bb2 {[%emt 0:00:00]} e6 {[%emt 0:00:09]} 4. e3 {[%emt 0:00:00]} Be7 {[%emt 0:00:05]} 5. c4 {[%emt 0:00:00]} O-O {[%emt 0:00:13]} 6. Qc2 {[%emt 0:00:00] A13: English Opening: 1...e6.} b6 {[%emt 0:00:10]} 7. Be2 {[%emt 0:00:00]} Bb7 {[%emt 0:00:06]} 8. O-O {[%emt 0:00:00] The position is equal.} Nbd7 {[%emt 0:00:04]} 9. Nc3 {[%emt 0:00:00]} c5 {[%emt 0:01:12]} 10. Rac1 {[%emt 0:00:32]} Rc8 {[%emt 0:00:19]} 11. Rfd1 {[%emt 0:01:35]} Qc7 {[%emt 0:01:05]} 12. d4 {[%emt 0:08:52]} (12. cxd5 {feels hotter.} Nxd5 13. Nxd5 Bxd5 14. Bd3) 12... cxd4 {[%emt 0:02:20]} (12... dxc4 {keeps more tension.} 13. Bxc4 cxd4 14. Nb5 Qb8) 13. exd4 {[%emt 0:01:47]} dxc4 {[%emt 0:02:54]} 14. bxc4 {[%emt 0:00:10][%cal Of3e5]} Bxf3 {[%emt 0:00:34]} 15. gxf3 {[%emt 0:09:43]} (15. Bxf3 $15 Qxc4 16. Qd2) 15... Qf4 {[%emt 0:03:07]} 16. Ne4 {[%emt 0:04:16]} Qh4 {[%emt 0:00:10] [#]} 17. Ng3 $146 {[%emt 0:07:15]} ({Predecessor:} 17. Kh1 Nxe4 18. Qxe4 Qh6 19. Rg1 Bd6 20. Rg2 Nf6 21. Qd3 Nh5 22. d5 e5 23. Rcg1 g6 24. Bc1 Nf4 25. Bxf4 Qxf4 26. Rg4 e4 {0-1 (26) Scheipl,R (2335)-Saacke,B Kitzingen 1980}) 17... Rc7 {[%emt 0:03:47]} 18. d5 {[%emt 0:08:55] Hoping for d6.} Bc5 {[%emt 0:03:52][%cal Oc5f2] Strongly threatening ...Bxf2+!} 19. Bf1 {[%emt 0:11:54]} Qf4 {[%emt 0:09:43]} 20. Qd3 {[%emt 0:12:52] [#]} (20. Bg2 $15) 20... exd5 {[%emt 0:06:19]} (20... Ng4 $1 $17 {[%mdl 512]} 21. Rc2 Nde5) 21. cxd5 $11 {[%emt 0:00:54]} Ng4 {[%emt 0:00:04][%cal Bf6g4,Bg4f2,Bf2d3][%mdl 32]} 22. Kg2 {[%emt 0:11:52]} (22. Rxc5 $1 $14 {keeps the upper hand.} Nde5 {[#]} 23. Rxc7 $1 (23. Bxe5 Nxe5 24. Rxc7 Nxd3 $17) 23... Nxd3 24. Rxd3 $1 Nxf2 25. Rxf7 $1 (25. Kxf2 Qxc7 26. Rd2 Qc5+ 27. Kg2 Qa5 $15) (25. Rdc3 Nd1 $11) 25... Rxf7 26. Kxf2) 22... Nxf2 $19 {[%emt 0:02:02] Chess con chili. Pair of Knights!} 23. Qc3 {[%emt 0:00:10][%csl Gb2][%cal Rc3g7]} Nf6 $40 {[%emt 0:02:19][%mdl 128] Black wants a kill.} 24. Qe5 {[%emt 0:05:56]} Qh6 {[%emt 0:20:39] 0x0.000860a600f9dp-1022s more active pieces.} 25. Rxc5 $1 $11 {[%emt 0:00:41][%mdl 64] Remove Defender} (25. Qxc7 $2 {leads to mate.} Qh3+ 26. Kg1 N2g4+ 27. Bd4 Qxh2#) 25... Rxc5 {[%emt 0:00:06]} 26. Re1 $2 {[%mdl 8192]} (26. Nf5 $11 Qh5 27. Kxf2 (27. Ne7+ Kh8 $11) 27... Rc2+ 28. Be2) 26... Rc2 $19 {[%emt 0:02:48]} 27. Re2 {[%emt 0:01:02]} Nd3 {[%emt 0:01:00][%csl LRb2,LRe5]} 28. Qd4 {[%emt 0:00:00] Weighted Error Value: White=0.45/Black=0.18 (very precise)} 0-1

[Event "GER-ch Youth-ODJM 2022 A"]
[Site "Willingen"]
[Date "2022.06.11"]
[Round "9.13"]
[White "Weigand, Anton"]
[Black "Savchenko, Daniel"]
[Result "1/2-1/2"]
[ECO "B22"]
[WhiteElo "1872"]
[BlackElo "2134"]
[Annotator "TA"]
[PlyCount "45"]
[EventDate "2022.06.05"]
[EventType "swiss"]
[EventRounds "9"]
[EventCountry "GER"]
[SourceTitle "playchess.com"]
[Source "ChessBase"]
[SourceQuality "1"]
[TimeControl "40/4500+30:900+30"]

{[%evp 18,45,1,-17,5,-8,0,0,0,0,32,19,47,38,41,36,43,22,26,25,28,16,20,16,21,11,31,0,0,0]} 1. e4 {[%emt 0:00:00]} c5 {[%emt 0:00:00]} 2. c3 {[%emt 0:00:00]} d5 {[%emt 0:00:00]} 3. exd5 {[%emt 0:00:00]} Qxd5 {[%emt 0:00:00]} 4. d4 {[%emt 0:00:00]} Nf6 {[%emt 0:00:00]} 5. Nf3 {[%emt 0:00:00]} e6 {[%emt 0:00:00]} 6. Na3 {[%emt 0:00:00]} Nc6 {[%emt 0:00:00]} 7. Nb5 {[%emt 0:00:00]} Qd8 {[%emt 0:00:00]} 8. dxc5 {[%emt 0:02:30]} Bxc5 {[%emt 0:00:00]} 9. Qxd8+ {[%emt 0:01:52]} Kxd8 {[%emt 0:00:00]} 10. Bg5 {[%emt 0:03:05]} a6 {[%emt 0:00:00] B22: Sicilian: 2 c3.} 11. O-O-O+ {[%emt 0:01:03]} Ke7 {[%emt 0:00:00]} 12. Nbd4 {[%emt 0:01:36]} (12. Nc7 Ra7 13. b4 Bxf2 $17) 12... Nxd4 {[%emt 0:00:00]} 13. Nxd4 {[%emt 0:00:32]} Bd7 {[%emt 0:00:00]} 14. Be2 {[%emt 0:07:13]} Bxd4 {[%emt 0:02:04]} 15. Rxd4 {[%emt 0:00:58]} ({Much weaker is} 15. cxd4 Bc6 $15) 15... Bc6 {[%emt 0:00:10] [#]} 16. f3 $146 {[%emt 0:00:50]} ({Predecessor:} 16. Rhd1 Rhd8 17. Rxd8 Rxd8 {½-½ (17) Hindermann,F (2181)-Pataki,G (2294) Balatonlelle 2000}) 16... Rhd8 {[%emt 0:01:33]} 17. Rhd1 {[%emt 0:00:14]} Rxd4 {[%emt 0:00:44]} 18. Rxd4 {[%emt 0:00:10]} ({Reject} 18. cxd4 Rd8 $11) 18... h6 {[%emt 0:00:19]} 19. Bh4 {[%emt 0:01:45]} g5 {[%emt 0:04:12] [#] Threatens to win with ...e5.} 20. Bf2 {[%emt 0:03:45]} Nd5 {[%emt 0:01:16]} 21. g3 {[%emt 0:02:19]} e5 {[%emt 0:01:13]} 22. Rd1 {[%emt 0:01:17]} f5 {[%emt 0:04:29]} 23. c4 {[%emt 0:06:49] Weighted Error Value: White=0.10 (very precise) /Black=0.09 (flawless)} 1/2-1/2

[Event "GER-ch Youth-ODJM 2022 A"]
[Site "Willingen"]
[Date "2022.06.11"]
[Round "9.14"]
[White "Kracht, Raphael"]
[Black "Schwartz, Oliver"]
[Result "0-1"]
[ECO "A05"]
[WhiteElo "2086"]
[BlackElo "1753"]
[Annotator "TA"]
[PlyCount "68"]
[EventDate "2022.06.05"]
[EventType "swiss"]
[EventRounds "9"]
[EventCountry "GER"]
[SourceTitle "playchess.com"]
[Source "ChessBase"]
[SourceQuality "1"]
[TimeControl "40/4500+30:900+30"]

{[%evp 9,68,-82,-75,-67,-63,-61,-36,-42,-30,-31,-24,-40,14,0,0,-38,-33,-53,47,17,21,-42,0,-12,41,-20,-25,-47,-41,-62,-36,-45,-51,-65,-30,-81,0,-129,-120,-122,-145,-422,-427,-417,-429,-426,-418,-507,-491,-703,-668,-809,-729,-728,-557,-996,-980,-1233,-1216,-1593,-1546]} 1. Nf3 {[%emt 0:00:00]} Nf6 {[%emt 0:00:00][%cal Bg8f6,Bf6d7,Bd7b6,Bb6d5][%mdl 32]} 2. Rg1 {[%emt 0:00:00]} d5 {[%emt 0:00:00]} 3. h3 {[%emt 0:00:00] [#]} c5 $146 {[%emt 0:00:00]} ({Predecessor:} 3... c6 4. g4 g6 5. d4 Bg7 6. Nc3 O-O 7. Be3 Na6 8. Qd2 Nd7 9. Bh6 Nb6 10. Bxg7 Kxg7 {1-0 (47) Hoellwarth,K (1669)-Zimmermann,A (1340) Hanau 2013}) 4. g4 {[%emt 0:00:00]} Nc6 {[%emt 0:00:00]} 5. d3 {[%emt 0:00:07]} e5 {[%emt 0:07:03]} 6. g5 {[%emt 0:00:05] A05: Réti Opening: 1 Nf3 Nf6.} Nd7 {[%emt 0:07:10]} 7. a4 {[%emt 0:00:05]} a5 {[%emt 0:05:05]} 8. Nc3 {[%emt 0:01:28] Black is slightly better.} Nb6 {[%emt 0:02:38]} 9. e4 {[%emt 0:00:16]} Be6 {[%emt 0:04:57]} 10. h4 {[%emt 0:04:05]} Rc8 {[%emt 0:04:22]} (10... Qd7 $15) 11. exd5 $11 {[%emt 0:01:03]} Nxd5 {[%emt 0:00:25]} 12. Ne4 {[%emt 0:00:05]} Nd4 {[%emt 0:08:48]} 13. c3 {[%emt 0:03:16] [#]} Nc6 {[%emt 0:00:28]} (13... Nxc3 $1 $15 14. bxc3 Bb3 15. cxd4 Bxd1 16. Kxd1 Qd5) 14. h5 {[%emt 0:01:00]} Be7 {[%emt 0:04:39]} 15. Nh4 {[%emt 0:11:38]} (15. h6 $11) 15... Rc7 {[%emt 0:18:04]} 16. Qf3 {[%emt 0:01:21]} g6 {[%emt 0:03:09] Against Nf5} ({Black should try} 16... Qd7 $11) 17. Bd2 {[%emt 0:02:24]} (17. Bh3 $14 Bxh3 18. Qxh3) 17... Rd7 {[%emt 0:03:04]} 18. Rd1 {[%emt 0:03:01]} Qb6 {[%emt 0:04:46]} 19. Bc1 {[%emt 0:00:20]} Qb3 {[%emt 0:01:17]} 20. Bh3 {[%emt 0:03:15]} Bxh3 {[%emt 0:01:05]} 21. Qxh3 {[%emt 0:00:05]} Qxa4 {[%emt 0:00:39]} 22. Nf3 {[%emt 0:00:21] [#]} (22. Rg4 $11 c4 23. Ng2) 22... c4 {[%emt 0:03:02]} (22... Kd8 $1 $17) 23. Rg4 {[%emt 0:02:47]} (23. hxg6 $1 $11 fxg6 24. Qe6) 23... Qc2 $17 {[%emt 0:01:20]} 24. hxg6 {[%emt 0:09:52]} fxg6 $40 {[%emt 0:00:10][%mdl 128] Black wants a kill.} (24... cxd3 $2 25. gxf7+ Kxf7 26. Bd2 $18) 25. Nf6+ $2 {[%emt 0:01:34][%mdl 8192] This move loses the game for White.} (25. Rh4 $17) 25... Nxf6 $19 {[%emt 0:01:03]} 26. gxf6 {[%emt 0:00:45]} Rxd3 {[%emt 0:00:24][%csl Gc2][%cal Rd3d1,Bd7d3,Bd3c3,Bc3f3][%mdl 32] Really sharp!} 27. Bd2 {[%emt 0:00:06]} Bxf6 {[%emt 0:00:29]} 28. Rxc4 {[%emt 0:01:28]} O-O {[%emt 0:01:08][%cal Bh8f8,Bf8e8,Be8d8][%mdl 32] aiming for ...Kh8. Black is clearly winning.} 29. Ke2 {[%emt 0:06:32]} (29. Re4 $142) 29... Re8 {[%emt 0:01:28]} 30. Re4 {[%emt 0:02:13] [#] Inhibits Nd4+.} Rxc3 $3 {[%emt 0:01:30][%mdl 512]} 31. Qg4 {[%emt 0:00:32]} (31. bxc3 Qxe4+) 31... Qxb2 {[%emt 0:00:36] White must now prevent ...Qb5+.} 32. Qd7 {[%emt 0:02:24]} Rd8 {[%emt 0:00:40]} 33. Qe6+ {[%emt 0:00:05]} Kg7 {And now ...Qb5+ would win.} 34. Ke1 {[%emt 0:00:57]} Rxf3 {[%emt 0:00:58] Weighted Error Value: White=0.82/Black=0.30} 0-1

[Event "GER-ch Youth-ODJM 2022 A"]
[Site "Willingen"]
[Date "2022.06.11"]
[Round "9.15"]
[White "Frohnhäuser, Simon"]
[Black "Pick, Max"]
[Result "1-0"]
[ECO "B01"]
[WhiteElo "1944"]
[BlackElo "1841"]
[Annotator "TA"]
[PlyCount "113"]
[EventDate "2022.06.05"]
[EventType "swiss"]
[EventRounds "9"]
[EventCountry "GER"]
[SourceTitle "playchess.com"]
[Source "ChessBase"]
[SourceQuality "1"]
[TimeControl "40/4500+30:900+30"]

{[%evp 15,113,53,76,54,68,23,40,14,16,8,31,27,31,46,38,-14,43,0,44,28,59,55,93,62,105,116,171,72,95,39,43,36,131,135,197,220,238,201,210,193,243,193,206,199,209,192,168,190,198,156,299,302,293,293,296,296,249,236,236,242,249,249,239,179,179,163,163,150,150,150,150,150,126,91,91,93,98,99,112,112,112,113,285,190,498,490,398,322,322,171,280,190,29974,29974,29982,29983,29987,29988,29991,29992]} 1. e4 {[%emt 0:00:00]} d5 {[%emt 0:00:00]} 2. exd5 {[%emt 0:00:00]} Nf6 {[%emt 0:00:00]} 3. d4 {[%emt 0:00:00]} Nxd5 {[%emt 0:00:00]} 4. Nf3 {[%emt 0:00:00]} Bg4 {[%emt 0:00:00]} 5. c4 {[%emt 0:00:00]} Nf6 {[%emt 0:00:00]} 6. Be2 {[%emt 0:00:00]} e6 {[%emt 0:00:00]} 7. O-O {[%emt 0:00:00]} Be7 {[%emt 0:00:00]} 8. Nc3 {[%emt 0:00:00]} O-O {[%emt 0:00:00]} 9. Be3 {[%emt 0:00:00] 9.Be3 is better than 9.h3. B01: Scandinavian Defence.} Nbd7 {[%emt 0:00:00] [#]} 10. b3 $146 {[%emt 0:00:00]} ({Predecessor:} 10. Qb3 Qc8 11. Rfd1 Rd8 12. Rac1 a6 13. h3 Bh5 14. Bf4 Bd6 15. Bg5 c5 16. d5 {1-0 (37) Vuckovic,B (2511)-Mateuta,G (2444) Sozina 2004}) 10... Re8 {[%emt 0:03:14]} 11. Qc2 {[%emt 0:00:00] White is slightly better.} Bf5 {[%emt 0:02:45]} 12. Qb2 {[%emt 0:00:00]} c5 {[%emt 0:02:41]} 13. Rad1 {[%emt 0:00:00]} cxd4 {[%emt 0:15:47]} 14. Nxd4 {[%emt 0:00:02]} Bg6 {[%emt 0:01:38]} 15. Bf3 {[%emt 0:15:13]} (15. b4 $14) 15... e5 {[%emt 0:05:16]} (15... Qc7 $11) 16. Nc2 {[%emt 0:00:19]} (16. Ndb5 $5 {[%cal Rf3b7]}) 16... e4 {[%emt 0:01:02]} 17. Be2 {[%emt 0:00:07]} a6 {[%emt 0:01:40]} 18. Bd4 {[%emt 0:06:31]} Qa5 {[%emt 0:08:52]} 19. Ne3 {[%emt 0:06:02]} Qg5 {[%emt 0:02:14]} 20. Ncd5 {[%emt 0:01:14]} Bd8 {[#] Prevents Nc7.} (20... Nxd5 $16 21. Nxd5 Bf5) 21. Nxf6+ {[%emt 0:16:05]} (21. g3 $1 $18) 21... Bxf6 {[%emt 0:04:24]} 22. Nd5 {[%emt 0:00:07]} (22. g3 $16 {Strongly threatening h4.} Bxd4 23. Qxd4) 22... Bxd4 $14 {[%emt 0:04:24]} 23. Qxd4 {[%emt 0:00:05]} Rad8 {[%emt 0:00:51]} (23... Rab8 $14) 24. Qa7 $16 {[%emt 0:01:24] White is more active.} f5 {[%emt 0:11:25]} (24... e3 $16) 25. Qxb7 $18 {[%emt 0:02:19]} Nc5 {[%emt 0:00:37]} 26. Qc7 {[%emt 0:00:37]} Ne6 {[%emt 0:16:10]} 27. Qg3 {[%emt 0:00:29]} Qxg3 {[%emt 0:00:42]} (27... Qh6 $142 28. Qe5 Kh8) 28. hxg3 {[%emt 0:00:15]} Kf8 {[%emt 0:01:02]} 29. b4 {[%emt 0:02:10]} Bf7 {[%emt 0:00:28]} 30. a4 a5 {[%emt 0:00:39]} 31. bxa5 {[%emt 0:01:23]} Ra8 {[%emt 0:00:18]} 32. c5 {[%emt 0:08:12] Bb5 is the strong threat.} Nxc5 {[%emt 0:04:47]} (32... Rxa5 $16 33. Bb5 Nxc5) 33. Nc7 $1 {[%emt 0:01:08][%csl LRa8,LRe8]} Rxa5 {[%emt 0:00:10]} 34. Nxe8 {[%emt 0:00:08]} Kxe8 {[%emt 0:00:25]} 35. Bb5+ {[%emt 0:00:56]} Ke7 {[%emt 0:00:13]} 36. Ra1 {[%emt 0:00:38]} Bb3 {[%emt 0:01:03]} 37. Rfc1 {[%emt 0:00:30]} Kd6 {[%emt 0:00:21]} 38. Ra3 {[%emt 0:04:41][%cal Oc1c5] Black must now prevent Rxc5!} Bxa4 {[%emt 0:00:48]} 39. Be8 {[%emt 0:00:37] And now Rca1 would win.} Ra8 {[%emt 0:00:26]} 40. Bxa4 {[%emt 0:02:01]} Rxa4 {[%emt 0:00:15][%mdl 4096] Endgame KRR-KRN} 41. Rd1+ {[%emt 0:15:52]} Ke5 {[%emt 0:00:00]} 42. Rxa4 {[%emt 0:00:00]} Nxa4 $16 {[%emt 0:00:00] KR-KN} 43. Rd7 {[%emt 0:00:00]} Kf6 {[%emt 0:00:00]} 44. Kf1 {[%emt 0:00:00]} Nc5 {[%emt 0:00:00]} 45. Ra7 {[%emt 0:00:00]} h6 {[%emt 0:00:00]} 46. Ke2 {[%emt 0:00:00]} g6 {[%emt 0:00:00]} 47. Ke3 {[%emt 0:00:00]} Kg5 {[%emt 0:00:00]} 48. Ra5 {[%emt 0:00:00]} Nd3 {A mistake that costs the game.} (48... Ne6 $16 {might work better.} 49. Ra6 Kf6) 49. Ra6 {[%emt 0:00:00] Hoping for f4+.} Nc5 $2 {[%emt 0:00:00]} (49... Ne1 {is a better chance.} 50. Ke2 Nd3) 50. Rc6 $18 {[%emt 0:00:00]} Nd7 {[%emt 0:01:10]} 51. Kd4 {[%emt 0:00:00] Prevents Ne5.} h5 {[%emt 0:07:34]} 52. Rd6 {[%emt 0:00:00]} (52. Ra6 $142) 52... Nf8 {[%emt 0:00:35]} (52... Nf6 {keeps fighting.} 53. Ra6 Ng4) 53. Ke5 {[%emt 0:00:00]} h4 $2 {[%emt 0:07:32] [#]} (53... Nh7 $18 54. f4+ Kh6) 54. gxh4+ {[%emt 0:00:00] White mates.} Kxh4 {[%emt 0:00:43]} 55. Rd8 {[%emt 0:00:00]} Ne6 {[%emt 0:00:50]} 56. Kxe6 {[%emt 0:00:00]} f4 57. Rd4 {[%emt 0:00:00] Weighted Error Value: White=0.22 (precise) /Black=0.43} 1-0

[Event "GER-ch Youth-ODJM 2022 A"]
[Site "Willingen"]
[Date "2022.06.11"]
[Round "9.16"]
[White "Kamp, Adrian"]
[Black "Struck, Lasse"]
[Result "1/2-1/2"]
[ECO "B40"]
[WhiteElo "1969"]
[BlackElo "1847"]
[Annotator "TA"]
[PlyCount "104"]
[EventDate "2022.06.05"]
[EventType "swiss"]
[EventRounds "9"]
[EventCountry "GER"]
[SourceTitle "playchess.com"]
[Source "ChessBase"]
[SourceQuality "1"]
[TimeControl "40/4500+30:900+30"]

{[%evp 9,104,2,-1,0,2,4,0,-4,10,11,11,0,0,0,-7,-1,13,12,29,25,39,42,69,0,0,0,1,0,0,0,0,0,27,27,27,27,27,27,27,27,35,6,160,160,160,160,137,185,197,203,123,84,230,91,92,0,92,92,100,64,128,128,205,205,245,205,205,21,22,0,205,0,39,0,0,0,0,0,0,0,0,0,0,0,0,0,0,0,0,0,0,0,0,0,0,0,0]} 1. e4 {[%emt 0:00:00]} c5 {[%emt 0:00:00]} 2. Nf3 {[%emt 0:00:00]} e6 {[%emt 0:00:00]} 3. c3 {[%emt 0:00:00]} Nf6 {[%emt 0:00:00]} 4. e5 {[%emt 0:00:00]} Nd5 {[%emt 0:00:00]} 5. g3 {[%emt 0:00:00]} d6 {[%emt 0:00:00]} 6. exd6 {[%emt 0:00:00] B22: Sicilian: 2 c3.} Bxd6 {[%emt 0:00:00]} 7. Bg2 {[%emt 0:00:00]} O-O {[%emt 0:00:00]} 8. O-O {[%emt 0:00:00]} e5 {[%emt 0:00:00] [#]} 9. Re1 $146 {[%emt 0:00:00]} ({Predecessor:} 9. d3 Nc6 10. Nbd2 Bc7 11. Re1 h6 12. a3 b6 13. Nc4 Re8 14. Qc2 Bf5 15. Nh4 {1-0 (83) Bernotas,A (2408)-Andreikin,D (2712) Chess.com INT 2018}) 9... Nc6 {[%emt 0:00:00]} 10. d4 {[%emt 0:00:00]} exd4 {[%emt 0:02:55]} 11. cxd4 {[%emt 0:00:00]} h6 {[%emt 0:06:53] Inhibits Bg5.} 12. Nc3 {[%emt 0:09:31]} Nxc3 {[%emt 0:02:38]} 13. bxc3 {[%emt 0:00:14]} cxd4 {[%emt 0:05:16]} 14. Nxd4 {[%emt 0:02:08]} Bd7 {[%emt 0:04:19]} 15. Rb1 {[%emt 0:07:26]} Rb8 {[%emt 0:02:58]} 16. Nb5 {[%emt 0:03:37] White is more active.} (16. Be3 $1 $14) 16... Bf5 $11 {[%emt 0:12:37]} 17. Rb2 {[%emt 0:05:07]} Be5 {[%emt 0:04:06]} 18. Qxd8 {[%emt 0:28:23]} Rfxd8 {[%emt 0:01:04]} 19. Bxc6 {[%emt 0:02:01]} bxc6 {[%emt 0:00:14]} 20. Rxe5 {[%emt 0:00:22] And now Nd4 would win.} Rd1+ {[%emt 0:00:43]} 21. Kg2 {[%emt 0:00:08][%cal Ob5a7]} Rxc1 {[%emt 0:00:08]} 22. Rxf5 {[%emt 0:00:11][%cal Oa2a4]} Rxb5 {[%emt 0:00:14]} 23. Rfxb5 {[%emt 0:00:18]} cxb5 {[%emt 0:00:03]} 24. Rxb5 {[%emt 0:00:44] Threatens to win with Ra5.} Rxc3 {[%emt 0:00:05][%mdl 4096] Endgame KR-KR} 25. a4 {[%emt 0:00:14] next Rb7 is good for White.} (25. Ra5 $5 {[%cal Ra5a7]}) 25... Ra3 $2 {[%emt 0:00:40]} ({Black should try} 25... Rc6 $11) 26. Ra5 $16 {[%emt 0:00:32]} h5 {[%emt 0:01:39]} 27. Rxa7 {[%emt 0:02:18]} g6 {[%emt 0:00:19]} 28. a5 {[%emt 0:04:31]} (28. Ra8+ $16 Kg7 29. a5) 28... Kg7 $18 {[%emt 0:00:18]} 29. a6 {[%emt 0:03:11]} Kf6 {[%emt 0:00:49]} 30. Ra8 {[%emt 0:01:21] Strongly threatening h3.} Kg5 {[%emt 0:02:05]} (30... Kf5 $16 {is a better defense.} 31. h3 Kf6) 31. h4+ {[%emt 0:00:26]} (31. h3 $18 {is more deadly.}) 31... Kf5 {[%emt 0:00:16]} 32. Kf1 {[%emt 0:01:30]} (32. Ra7 $16 Ke5 33. Ra8 (33. Rxf7 Rxa6 34. Re7+ Kf5 $16)) 32... Ra2 {[%emt 0:01:04]} (32... Ra1+ $11 33. Kg2 Ra2) 33. Ra7 $1 $16 {[%emt 0:01:32]} Kf6 {[%emt 0:00:19]} 34. Ke1 {[%emt 0:02:23]} Ke6 {[%emt 0:00:53]} ({Black should play} 34... Ke5 $14) 35. Ra8 {[%emt 0:00:57]} Kf5 {[%emt 0:01:07]} (35... Ke7 $16 36. a7 Kf6) 36. f3 $1 $18 {[%emt 0:01:53]} ({Not} 36. a7 Kg4 $11) 36... Ra3 {[%emt 0:02:26]} 37. Ke2 {[%emt 0:01:24]} Ra2+ {[%emt 0:02:56] [#]} 38. Kd3 $2 {[%emt 0:01:11]} (38. Kd1 $1 $18) 38... Ra3+ $11 {[%emt 0:00:30]} 39. Ke2 $2 {[%emt 0:01:09]} (39. Kc4 $11 Rxf3 40. Kb4) 39... Ra2+ $1 $18 {[%emt 0:00:03] [#]} 40. Kd3 $2 {[%emt 0:00:09]} ({White must play} 40. Kd1 $1 $18) 40... Ra3+ $14 {[%emt 0:00:04]} 41. Kd4 {[%emt 0:00:00] Hoping for a7.} Rxf3 {[%emt 0:00:00] The position is equal.} 42. Rf8 {[%emt 0:00:00]} Ra3 {[%emt 0:00:00]} 43. Rxf7+ {[%emt 0:00:00]} Kg4 {[%emt 0:00:00]} 44. Rf6 {[%emt 0:00:33]} Kxg3 {[%emt 0:00:00]} 45. Rxg6+ {[%emt 0:00:15]} Kxh4 {[%emt 0:00:00]} 46. Kc5 {[%emt 0:00:16]} Kh3 {[%emt 0:00:00]} 47. Kb6 {[%emt 0:00:14]} h4 {[%emt 0:00:00]} 48. a7 {[%emt 0:00:16]} Kh2 {[%emt 0:00:00]} 49. Kb7 {[%emt 0:00:09] White wants to mate with Ra6.} Rxa7+ {[%emt 0:00:00]} 50. Kxa7 {[%emt 0:00:07]} h3 {[%emt 0:00:00]} 51. Rh6 {[%emt 0:00:18]} Kg2 {[%emt 0:00:00]} 52. Rxh3 {[%emt 0:00:06]} Kxh3 {Weighted Error Value: White=0.24 (precise) /Black=0.19 (very precise)} 1/2-1/2